Cogmind - Beta 17 @@@ ROGUE MODE // 2026.06.23 @ 20:31:55 Player: H0-D32 Result: Self-destructed Performance ------------- Evolutions (1) 500 Regions Visited (3) 600 Robots Destroyed (32) 160 Value Destroyed (989) 989 Prototype IDs (0) 0 Alien Tech Used (0) 0 Bonus (0) 0 TOTAL SCORE: 2249 Bonus ------- None Cogmind --------- Core Integrity 152/400 Matter 290/300 Energy 104/250 System Corruption 0% Temperature Warm (127) Movement Core (300) Ox5 Location -9/Materials Parts ------- > --- POWER (1) -------- Ion Engine > --- PROPULSION (3) --- (None) > --- UTILITY (3) ------ Small Storage Unit > --- WEAPON (2) ------- Beamcaster Maul > --- INVENTORY (8) ---- Light Treads Medium Matter Pod (100) Targeting Computer Targeting Computer Improved Utility Shielding Light Assault Rifle Peak State ------------ > --- POWER ------------ Light Ion Engine > --- PROPULSION ------- Light Treads Light Treads > --- UTILITY ---------- Small Storage Unit Core Shielding Improved Utility Shielding > --- WEAPON ----------- Makeshift Shrapnel Gun Mining Claw > --- INVENTORY -------- Ion Engine Medium Matter Pod Targeting Computer Targeting Computer Light Armor Plating Beamcaster Light Assault Rifle [Rating: 14] Favorites ----------- Power Light Ion Engine Engine Light Ion Engine Propulsion Light Treads Treads Light Treads Wheel Compact Wheel Utility Small Storage Unit Storage Small Storage Unit Protection Core Shielding Weapon Mining Claw Energy Gun Medium Laser Ballistic Gun Light Assault Rifle Special Weapon Welding Torch Impact Weapon Maul Slashing Weapon Mining Claw Build | -11 -10 -10 -9 ------- Run | Yrd Mat Min Mat Slots Evolved 2 | . . . 2 Power . | . . . . Propulsion 1 | . . . 1 Utility 1 | . . . 1 Weapon . | . . . . Parts Attached 23 | 6 9 1 7 Power 4 | 1 2 . 1 Engine 4 | 1 2 . 1 Core . | . . . . Reactor . | . . . . Propulsion 6 | 2 2 . 2 Treads 4 | 2 . . 2 Leg . | . . . . Wheel 2 | . 2 . . Hover . | . . . . Flight . | . . . . Utility 5 | 1 2 . 2 Device . | . . . . Storage 1 | 1 . . . Processor . | . . . . Hackware . | . . . . Protection 4 | . 2 . 2 Artifact . | . . . . Weapon 8 | 2 3 1 2 Energy Gun 2 | . 1 . 1 Energy Cannon . | . . . . Ballistic Gun 3 | 2 . 1 . Ballistic Cannon . | . . . . Launcher . | . . . . Special Weapon 1 | . 1 . . Impact Weapon 1 | . . . 1 Slashing Weapon 1 | . 1 . . Piercing Weapon . | . . . . Special Melee Weapon . | . . . . Unidentified Prototypes . | . . . . Parts Lost 10 | . 1 2 7 Power 2 | . . 1 1 Propulsion 4 | . . 1 3 Utility 2 | . . . 2 Weapon 2 | . 1 . 1 Highest Loss Streak 6 | . 1 2 6 To Critical Strikes . | . . . . Average Backups 6 | 2 6 7 7 Power 1 | . 1 2 1 Propulsion 1 | 1 1 1 . Utility 3 | . 2 3 3 Weapon 1 | . . . 1 Tool/Special . | . . . . Unused Backups 7 | . 3 . 4 Power . | . . . . Propulsion 1 | . . . 1 Utility 5 | . 2 . 3 Weapon 1 | . 1 . . Tool/Special . | . . . . Average Slot Usage (%) 87 | . 97 75 79 Engine 9 | . 13 2 7 Treads 16 | . 26 . 15 Wheel 5 | . 1 16 2 Storage 13 | . 14 14 11 Protection 15 | . 12 14 21 Energy Gun 7 | . 9 10 . Ballistic Gun 9 | . 11 3 10 Slashing Weapon 8 | . 5 14 8 Peak Build Rating 14 | 6 7 9 14 Average Rating 7 | 4 6 6 11 On Entrance 5 | . 6 7 9 Avg Prop Armor Cover (%) . | . . . . Naked Turns . | . . . . Heaviest Build 18 | 13 14 13 18 Greatest Support 40 | 40 40 32 40 Greatest Overweight (x) 5 | . . . 5 Average Overweight (x) . | . . . . Largest Inventory Capacity 8 | 8 8 8 8 Average Capacity 7 | 6 8 8 8 Most Carried 8 | 4 8 8 8 Average Carried 7 | 2 6 7 7 Final Capacity 8 | 8 8 8 8 Final Carried 8 | 4 7 8 6 Class Distribution -------------------- 100% | Mutant Dominant Class ---------------- Mutant | -10/Materials Mutant | -10/Mines Mutant | -9/Materials Resources | -11 -10 -10 -9 ----------- Run | Yrd Mat Min Mat Matter Collected 726 | 149 407 30 140 Remotely . | . . . . Salvage Created 1126 | . 606 81 439 Parts 49 | . 26 3 20 Haulers Intercepted . | . . . . Recyclers Shooed . | . . . . Parts Field Recycled . | . . . . Retrieved Matter . | . . . . Parts Self-Destructed . | . . . . Prevented . | . . . . Parts Restored . | . . . . Kills | -11 -10 -10 -9 ------- Run | Yrd Mat Min Mat Combat Hostiles Destroyed 28 | . 15 2 11 Melee 9 | . 2 1 6 Guns 18 | . 13 1 4 Classes Destroyed 6 | . 3 . 3 Worker 1 | . . . 1 Watcher 3 | . 2 . 1 Swarmer 4 | . 3 . 1 Grunt 21 | . 12 2 7 Duelist 1 | . . . 1 Sentry 2 | . . . 2 Best Kill Streak 5 | . 5 2 5 Combat Bots Only 5 | . 5 2 4 Max Kills in Single Turn 1 | . 1 1 1 Gunslinging . | . . . . Exploded . | . . . . Melee 1 | . 1 1 1 Uniques/NPCs Destroyed . | . . . . Combat | -11 -10 -10 -9 -------- Run | Yrd Mat Min Mat Hostile Shots Fired 204 | . 84 15 105 Missed 54 | . 25 6 23 Hits 150 | . 59 9 82 Projectile 150 | . 59 9 82 Critical Strikes 1 | . . . 1 Damage Taken 1695 | . 635 132 928 Core 335 | . 65 22 248 Absorbed by Shields . | . . . . Redirected to Shielding 95 | . 30 4 61 Regen/Repaired (Parts) 17 | . 17 . . Core Remaining (%) 82 | 100 . 65 . Volleys Fired 88 | . 65 3 20 Largest 2 | . 2 1 1 Hottest 75 | . 70 50 75 Shots Fired 132 | . 109 3 20 Gun 128 | . 105 3 20 Cannon . | . . . . Launcher . | . . . . Special 4 | . 4 . . Kinetic 94 | . 78 . 16 Thermal 38 | . 31 3 4 Explosive . | . . . . Electromagnetic . | . . . . Robot Hit Streak 17 | . 17 2 7 Robot Miss Streak 8 | . 5 1 8 Penetration Max . | . . . . Secondary Targets . | . . . . Shots Hit Robots 118 | . 79 6 33 Core Hits 51 | . 33 3 15 Critical Kills 1 | . . . 1 Critical Parts Destroyed 2 | . . . 2 Critical Strikes 8 | . 4 1 3 Burn 5 | . 4 1 . Smash 3 | . . . 3 Melee Attacks 41 | . 8 5 28 Impact 13 | . . . 13 Slashing 28 | . 8 5 15 Piercing . | . . . . Sneak Attacks 2 | . . . 2 Combat Hostiles 1 | . . . 1 Follow-up Attacks . | . . . . Damage Inflicted 2042 | . 885 115 1042 Guns 1060 | . 720 25 315 Cannons . | . . . . Explosions . | . . . . Melee 977 | . 160 90 727 Ramming 1 | . 1 . . Kinetic 706 | . 432 . 274 Thermal 358 | . 292 25 41 Explosive . | . . . . Electromagnetic . | . . . . Impact 517 | . . . 517 Slashing 460 | . 160 90 210 Piercing . | . . . . Highest Corruption . | . . . . Average Corruption . | . . . . Corruption Purged . | . . . . Corruption Blocked . | . . . . Overload Shots . | . . . . Overflow Damage 164 | . 21 . 143 Projectiles . | . . . . Explosions . | . . . . Melee 164 | . 21 . 143 Knockbacks 3 | . . . 3 Impact 2 | . . . 2 Kinetic . | . . . . Secondary 1 | . . . 1 Self-Inflicted Damage . | . . . . Shots . | . . . . Rammed 1 | . 1 . . Targets Rammed 1 | . 1 . . Kicked . | . . . . Crushed . | . . . . Highest Temperature 175 | . 154 57 175 Average Temperature 55 | . 51 32 104 Received Heat Transfer 723 | . 294 66 363 Siege Activations . | . . . . Martial Activations . | . . . . Shielding Activations . | . . . . Robots Disrupted . | . . . . Combat Hostiles . | . . . . Robots Corrupted 1 | . . . 1 Combat Hostiles 1 | . . . 1 Parts Fried 3 | . . . 3 Impact Corruptions 5 | . . . 5 Robots Melted . | . . . . Combat Hostiles . | . . . . Parts Melted 2 | . 1 1 . Heat Transferred 1419 | . 1197 148 74 Parts Sabotaged . | . . . . Parts Stolen . | . . . . Parts Stripped . | . . . . Power Chain Reactions . | . . . . Alert | -11 -10 -10 -9 ------- Run | Yrd Mat Min Mat Maximum Alert Level . | . . . . Low Security (%) 100 | 100 100 100 100 Level 1 . | . . . . Level 2 . | . . . . Level 3 . | . . . . Level 4 . | . . . . Level 5 . | . . . . High Security . | . . . . Max Security . | . . . . Peak Influence 135 | . 135 30 117 Initial . | . . . . Average 24 | . 40 1 19 Influence Increases 756 | . 389 50 317 Destroy 0b10 Robot/C 560 | . 300 40 220 Destroy 0b10 Robot/NC 20 | . 10 . 10 Destroy Leader 116 | . 64 10 42 Disable Machine 15 | . . . 15 Lose Combat Pursuer 45 | . 15 . 30 Influence Decreases 657 | . 389 50 218 Time Decay 577 | . 379 40 158 Lost Part 80 | . 10 10 60 Squads Dispatched 4 | . 3 . 1 Investigation 1 | . 1 . . Extermination . | . . . . Reinforcement 3 | . 2 . 1 Assault . | . . . . Garrison . | . . . . Intercept . | . . . . Searches Triggered . | . . . . Construction Impeded . | . . . . Haulers Reinforced . | . . . . Active Scanning Responses . | . . . . Cargo Convoy Interrupts . | . . . . Stealth | -11 -10 -10 -9 --------- Run | Yrd Mat Min Mat Distress Signals 3 | . . . 3 Communications Jammed . | . . . . Distress Signals . | . . . . Times Spotted 51 | . 24 2 25 Peak Tracking Total 9 | . 3 2 9 Tactical Retreats 3 | . 1 . 2 Traps | -11 -10 -10 -9 ------- Run | Yrd Mat Min Mat Traps Triggered . | . . . . Indirectly . | . . . . Trap Hack Attempts . | . . . . Triggered . | . . . . Disarmed . | . . . . Reprogrammed . | . . . . Reused . | . . . . Traps Extracted . | . . . . Installed . | . . . . Triggered . | . . . . Machines | -11 -10 -10 -9 ---------- Run | Yrd Mat Min Mat Machines Disabled 1 | . . . 1 Max in Single Turn 1 | . . . 1 Machines Repaired . | . . . . Machines Dismantled . | . . . . Machines Sabotaged . | . . . . Overloaded Fab Kills . | . . . . Hacking | -11 -10 -10 -9 --------- Run | Yrd Mat Min Mat Machines Accessed 7 | . 5 1 1 Terminals 4 | . 3 . 1 Fabricators . | . . . . Repair Stations 1 | . 1 . . Recycling Units 1 | . 1 . . Scanalyzers . | . . . . Garrison Access . | . . . . Total Hacks 19 | . 15 1 3 Successful 14 | . 10 1 3 Failed 5 | . 5 . . Catastrophic . | . . . . Database Lockouts . | . . . . Manual 2 | . 2 . . Terminals 9 | . 6 . 3 Fabricators . | . . . . Repair Stations 3 | . 3 . . Recycling Units 6 | . 6 . . Scanalyzers . | . . . . Garrison Access . | . . . . Terminal Hacks 7 | . 3 1 3 Record 3 | . 1 . 2 Open Door 1 | . . 1 . Locate Traps 1 | . 1 . . Zone Layout 2 | . 1 . 1 Fabricator Hacks . | . . . . Repair Station Hacks 2 | . 2 . . Scan Component 1 | . 1 . . Repair 1 | . 1 . . Recycling Unit Hacks 5 | . 5 . . Recycle Component 1 | . 1 . . Process 2 | . 2 . . Report Inventory 2 | . 2 . . Scanalyzer . | . . . . Garrison Access Hacks . | . . . . Unauthorized Hacks . | . . . . Terminals . | . . . . Fabricators . | . . . . Repair Stations . | . . . . Recycling Units . | . . . . Scanalyzers . | . . . . Garrison Access . | . . . . Data Cores Recovered . | . . . . Used . | . . . . Hacking Detections 6 | . 5 . 1 Full Trace Events 3 | . 3 . . Feedback Events . | . . . . Feedback Blocked . | . . . . Robot Schematics Acquired . | . . . . Robots Built . | . . . . Authchips . | . . . . Time . | . . . . Total Robot Build Rating . | . . . . Part Schematics Acquired . | . . . . Parts Built . | . . . . Authchips . | . . . . Time . | . . . . Total Part Build Rating . | . . . . Part Studies Acquired . | . . . . Parts Repaired 1 | . 1 . . Time 26 | . 26 . . Parts Recycled 1 | . 1 . . Recycled Matter 188 | . 188 . . Retrieved Matter . | . . . . Retrieved Components . | . . . . Parts Scanalyzed . | . . . . Part Schematics Acquired . | . . . . Parts Damaged . | . . . . Bothacking | -11 -10 -10 -9 ------------ Run | Yrd Mat Min Mat Used RIF Installer . | . . . . Robots Hacked . | . . . . Non-combat . | . . . . Combat . | . . . . Robot Hacks Applied . | . . . . Relay Couplers Released . | . . . . Fabnet Peak Effective % . | . . . . Robots Rewired . | . . . . Allies Hacked . | . . . . Hacks Repelled . | . . . . Allies | -11 -10 -10 -9 -------- Run | Yrd Mat Min Mat Total Allies . | . . . . Largest Group . | . . . . Highest-Rated Group . | . . . . Highest-Rated Ally . | . . . . Total Orders . | . . . . Ally Attacks . | . . . . Total Damage . | . . . . Kills . | . . . . Allies Corrupted . | . . . . Allies Melted . | . . . . Intel | -11 -10 -10 -9 ------- Run | Yrd Mat Min Mat Active Infowar (turns) . | . . . . Robot Analysis Total . | . . . . Derelict Logs Recovered 2 | . . 2 . Drone Launches . | . . . . Drone Recoveries . | . . . . Exploration | -11 -10 -10 -9 ------------- Run | Yrd Mat Min Mat Turns Passed 3100 | 75 1466 813 746 Spaces Moved 1914 | 44 758 738 374 Core 29 | 9 . . 20 Treads 994 | 35 696 . 263 Legs . | . . . . Wheels 891 | . 62 738 91 Hover . | . . . . Flight . | . . . . Fastest Speed 50 | 50 100 100 100 Average Speed 132 | 137 155 100 147 Slowest Speed 300 | 160 160 100 300 Overloaded Moves . | . . . . Propulsion Burnouts . | . . . . Robots Hopped . | . . . . Potential Cave-ins . | . . . . Cave-ins Triggered . | . . . . Exploration Rate (%) 50 | 3 76 96 28 Regions Visited 3 Branch Regions 1 Pre-discovered Areas 1 | . . 1 . Known Exits Taken . | . . . . Unknown Exits Taken 3 | 1 1 1 . Scrap Searched 1 | . . 1 . Spaces Dug . | . . . . Terrain Destroyed . | . . . . Melee . | . . . . Projectile . | . . . . AOE . | . . . . Terrain Rammed . | . . . . Walls Destroyed . | . . . . Machines Disabled . | . . . . Actions | -11 -10 -10 -9 --------- Run | Yrd Mat Min Mat Total 2286 | 59 935 800 492 Wait 172 | . 69 50 53 Move 1911 | 43 757 737 374 Hop . | . . . . Pick Up 34 | 10 16 2 6 Fast Attach . | . . . . Attach 22 | 6 7 1 8 Detach 1 | . . . 1 Swap 4 | . 3 1 . Drop 12 | . 9 1 2 Fire 88 | . 65 3 20 Melee 41 | . 8 5 28 Ram . | . . . . Kick . | . . . . Crush 1 | . 1 . . Escape Stasis . | . . . . Rewire . | . . . . Trap . | . . . . Miscellaneous . | . . . . Route ------- -11/Scrapyard -10/Materials (discovered 4 exits: *Mat x2 / *Min x2) -10/Mines -9/Materials (discovered 1 exit: [*Min]) History --------- Turn | Location | Event 4 | -11/Scrapyard | Discovered new exit (range 15) 76 | -11/Scrapyard | Entered Materials 307 | -10/Materials | Build established: Mutant 460 | -10/Materials | Discovered new exit (range 9) 745 | -10/Materials | Discovered new exit (range 16) 1053 | -10/Materials | Repaired Lgt. Ion Engine 1206 | -10/Materials | Discovered new exit (range 14) 1517 | -10/Materials | Discovered new exit (range 6) 1542 | -10/Materials | Entered Mines 1669 | -10/Mines | Learned Materials trap positions 1772 | -10/Mines | Met a Derelict who couldn't figure out how to use a Trap Extractor 1850 | -10/Mines | Discovered new exit (range 12) 2130 | -10/Mines | Learned location of Recycling (-9) 2203 | -10/Mines | A weapon hastily lodged in a ceiling crevice suddenly fell to the ground 2355 | -10/Mines | Entered Materials 2355 | -9/Materials | Evolved 2 slots: Propulsion x1, Utility x1 2356 | -9/Materials | Loaded intel: 20 trap records 2919 | -9/Materials | Discovered new exit (range 7) 3095 | -9/Materials | Core integrity fell below 50% 3101 | -9/Materials | Self-destructed Last Messages --------------- 03073_ Destroyed Med. Matter Pod. 03073_ K-01 Serf system corrupted by crushing effect. 03073_ Lgt. Ion Engine fried. 03073_ K-01 Serf destroyed. 03075_ K-01 Serf collects debris. 03078_ W-16 Scout sends out distress signal. 03081_ Acquired Corrupted Lgt. Treads. 03081_ Lgt. Treads destroyed. 03082_ S-10 Pest destroyed. 03085_ K-01 Serf collects debris. 03087_ Mak. Shrapnel Gun destroyed. 03089_ K-01 Serf collects debris. 03090_ Processing Tank disabled. 03092_ Core Shielding destroyed. 03093_ K-01 Serf collects debris. 03094_ Lgt. Treads destroyed. 03094_ K-01 Serf destroyed. 03095_ Lgt. Armor Plating destroyed. 03096_ G-34 Mercenary destroyed. Map ----- +----------------------------------------------------+ | ? " ? # " # ####+######????????????????? | | ? ####### T # # #????????????????? | | ? #?????# " # # !] | #????????????????? | | ? #?????# + + !] /#????????????????? | | ? #?????# ] # # ! #????????????????? | | ? #?????######## ###########????????????????? | | ? #########???# """#???????????????????????? | | ?###### #???# "#???????????????????????? | | ??????# """ #???# !"#???????????????????????? | | ??????# "R #???# < ""#???????????????????????? | | ?###### """ #???# !"#???????????????????????? | | ? + "" #???# "#???????????????????????? | | ?# # #???# """#???????????????????????? | | ?# ############# #############??????????????? | | ?# / # # #??????????????? | | ?# #### """ """ + %+ #??????????????? | | ?# #??# """"""""" # %# #??????????????? | | ?????????????""" # # #??????????????? | | ????????????? ?# #[%! #??????????????? | | ???????????? ! ?# # #??????????????? | | ??????????? ??# # %%[ #??????????????? | | ???????????#?##???# ####/########??????????????? | | ??????^^???######## ####m#?????????????????????? | | ??????^^?? %##????????????????????? | | ??????^^?? = #########????????????? | | ?????????????##### @%*s k ?????? | | ??????^??????????# = %s ?????? | | ?????????????????# g%g s ?????? | | ?????????????????# ##############??????? | | ?????????????????# " "" #???????????????????? | | ?????????????????# """"" #???????????????????? | | ?????????????????# """"" #???????????????????? | | ?????????????????# #???????????????????? | | ?????????????????# #???????????????????? | | ?????????????????# ? """ +???????????????????? | | ?????????????????#?????" #???????????????????? | | ???????????????????????" #???????????????????? | | ??????????????????????? #???????????????????? | | ??????????????????????? #???????????????????? | | ????????????????????????"" ???????????????????? | | ?????????????????????????? ????????????????????? | | ?????????????????????????????????????????????????? | | ?????????????????????????????????????????????????? | | ?????????????????????????????????????????????????? | | ?????????????????????????????????????????????????? | | ?????????????????????????????????????????????????? | | ?????????????????????????????????????????????????? | | ?????????????????????????????????????????????????? | | ?????????????????????????????????????????????????? | | ?????????????????????????????????????????????????? | +----------------------------------------------------+ Best States ------------- Heat Dissipation 28 Energy Generation 10 Energy Capacity 250 Matter Stores 300 Matter Capacity 300 Sight Range 16 Terrain Scan Density 10 Armor Coverage 150 Core Shielding 20 Propulsion Shielding 33 Utility Shielding 66 Evasion (%) 40 Recoil Reduction 2 Item Schematics ----------------- None Robot Schematics ------------------ None Fabricated ------------ Nothing Repaired ---------- Lgt. Ion Engine | 57% | -10/Materials Studied --------- None Alien Tech Used ----------------- None Achievements -------------- Overwhelming Challenges ------------ None Game ------ Seed AntimissileAlertBooster Manual? 0 Play Time 00:28:05 Cumulative 34.9 hours Start 2026.06.23 @ 20:02:35 End 2026.06.23 @ 20:31:55 Sessions 1 Manual Loads 0 Difficulty Rogue Special Mode None Game No. 47 Rogue 15 Adventurer 32 Explorer 0 Win Type - Total 0 Types 0/0/0/0/0/0/0/0/0/0 Lore% 15 Gallery% 21 Achievement% 13 Wizard Run 0 Options --------- Layout 1 ASCII 0 Keyboard 0 Movement Mouse Keybinds 0 Fullscreen 1 Font 24/Smallcaps Map View 50x35 Zoom Use 0% Tactical HUD 1 Map Filters NONE Filters NONE Steam 1 RUN: 6e75e37e-9a8d-44a3-8091-db280badc005